bitfinex-derivatives/quotes_SOLF0:USTF0_20240927
["timestamp","ask_amount","ask_price","bid_price","bid_amount"]
[1727433032119,3.1836,157.02,156.97,10.77]
[1727433032329,10.77,157.02,156.98,10.77]
[1727433032823,10.77,157.02,156.99,3.1839]
[1727433033626,13.9535,157.02,156.99,3.1839]
[1727433034831,10.77,157.0,156.82,6.3747]
[1727433035024,10.77,156.96,156.91,12.146]
[1727433036029,10.77,156.96,156.93,3.1851]
[1727433039830,22.35332142,157.06,156.91,1.376]
[1727433039831,10.77,156.94,156.91,1.376]
[1727433040135,10.77,156.92,156.88,10.77]
[1727433040628,10.77,156.92,156.89,3.186]
[1727433040827,10.77,156.92,156.88,10.77]
[1727433041026,3.25076158,156.98,156.89,10.77]
[1727433041027,10.77,156.94,156.89,10.77]
[1727433041223,13.9552,156.94,156.9,3.1858]
[1727433041623,10.77,156.94,156.89,10.77]
[1727433041827,13.9555,156.92,156.89,3.1861]
[1727433042230,3.1852,156.94,156.9,13.9557]
[1727433042436,3.1852,156.94,156.9,3.1857]
[1727433043631,16.84,156.97,156.87,16.84]
[1727433044029,16.84,156.99,156.9,16.84]
[1727433044226,3.1844,156.98,156.94,3.1849]
[1727433044832,3.1844,156.98,156.91,7.1988674]
[1727433045433,18.1002,157.01,156.91,7.1988674]
[1727433045630,18.1002,157.01,156.92,16.84]
[1727433046031,3.1842,156.99,156.95,3.1848]
[1727433046937,18.1002,157.01,156.91,4.001]
[1727433047328,3.1846,156.97,156.93,3.1852]
[1727433047531,18.1002,157.01,156.91,4.001]
[1727433047532,16.84,156.99,156.91,4.001]
[1727433047928,3.1848,156.96,156.92,3.1854]
[1727433048835,3.1848,156.96,156.93,3.1852]
[1727433051541,3.1845,156.97,156.94,3.185]
[1727433054044,3.1849,156.96,156.92,3.1854]
[1727433054244,3.1849,156.96,156.91,4.001]
[1727433054651,22.35332142,157.06,156.91,4.001]
[1727433054652,3.21332142,157.06,156.94,16.84]
[1727433054853,16.84,157.06,156.97,16.84]
[1727433055348,3.1832,157.04,157.0,3.1838]
[1727433056846,3.1832,157.04,156.98,1.3408]
[1727433056847,3.1829,157.05,156.98,1.3408]
[1727433057048,3.1829,157.05,156.98,3.9467]
[1727433057454,18.2096,157.08,156.98,20.7867]
[1727433058141,3.183,157.05,156.98,20.7867]
[1727433058337,18.2096,157.08,156.98,20.7867]
[1727433058951,3.1829,157.05,157.01,3.1837]
[1727433060448,3.1829,157.05,157.02,3.1834]
[1727433060650,3.1827,157.06,157.02,3.1834]
[1727433061547,16.84,157.06,157.0,3.1837]
[1727433061947,3.1831,157.04,157.0,3.1837]
[1727433062143,16.84,157.06,157.01,3.1836]
[1727433062543,3.183,157.05,157.01,3.1836]
[1727433067955,3.1831,157.04,157.01,3.1836]
[1727433068750,3.1829,157.05,156.98,3.9467]
[1727433069448,3.1829,157.05,157.02,3.1834]
[1727433070551,13.9429,157.05,157.02,3.1834]
[1727433071545,10.76,157.03,156.98,1.3408]
[1727433071745,10.76,157.01,156.98,1.3408]
[1727433072145,10.76,157.0,156.98,1.3408]
[1727433072347,10.76,157.0,156.94,64.96534989]
[1727433072543,10.76,156.99,156.94,64.96534989]
[1727433072742,10.76,156.99,156.97,3.1844]
[1727433073250,3.1839,157.0,156.97,3.1844]
[1727433073452,10.76,157.0,156.98,3.1842]
[1727433073652,3.1837,157.01,156.98,3.1842]
[1727433073852,10.76,157.02,156.97,10.76]
[1727433074352,3.1834,157.03,156.95,16.82]
[1727433075150,3.1834,157.03,156.99,3.1839]
[1727433075748,3.1835,157.02,156.99,3.1839]
[1727433076458,3.1838,157.01,156.94,54.20534989]
[1727433076777,16.82,157.02,156.97,3.1844]
[1727433076951,3.1839,157.0,156.97,3.1844]
[1727433078361,1.3696,157.08,156.94,54.20534989]
[1727433078657,16.82,157.04,156.94,54.20534989]
[1727433079452,3.1836,157.02,156.94,54.20534989]
[1727433079758,16.82,157.04,156.94,54.20534989]
[1727433079973,16.82,157.04,156.99,3.184]
[1727433080161,16.82,157.04,156.94,54.20534989]
[1727433080761,3.1834,157.03,157.0,3.1838]
[1727433082964,3.1835,157.02,157.0,3.1838]
[1727433083152,16.82,157.02,156.93,1.2554]
[1727433083356,37.3296,157.08,156.93,1.2554]
[1727433083552,16.82,156.99,156.93,1.2554]
[1727433083758,20.0042,156.99,156.95,3.1847]
[1727433084255,20.0038,157.01,156.93,1.2554]
[1727433084452,16.82,157.01,156.93,1.2554]
[1727433084651,40.51891931,157.08,156.93,1.2554]
[1727433084857,3.1838,157.01,156.93,1.2554]
[1727433085166,3.1838,157.01,156.93,18.0754]
[1727433085559,3.1835,157.02,156.93,18.0754]
[1727433085759,16.82,157.03,156.93,18.0754]
[1727433086362,3.1837,157.01,156.97,3.1843]
[1727433086865,16.82,157.06,156.95,16.82]
[1727433087457,3.1834,157.03,156.99,3.184]
[1727433088567,3.1835,157.02,156.99,3.184]
[1727433089363,16.82,157.03,156.93,18.0754]
[1727433089963,3.1839,157.0,156.97,3.1845]
[1727433090465,3.1837,157.01,156.97,3.1845]
[1727433091570,3.1841,156.99,156.95,3.1847]
[1727433091775,16.82,156.99,156.95,3.1847]
[1727433092075,3.1844,156.98,156.95,3.1849]
[1727433092673,16.82,156.99,156.93,1.2554]
[1727433093481,3.1843,156.98,156.94,3.1851]
[1727433096168,3.1845,156.97,156.94,3.1851]
[1727433097270,16.82,156.97,156.87,16.82]
[1727433097474,16.82,156.97,156.88,3.21976168]
[1727433097773,3.1849,156.95,156.88,3.21976168]
[1727433098575,3.1849,156.95,156.87,3.971]
[1727433098576,16.82,156.95,156.87,3.971]
[1727433098776,16.82,156.93,156.87,2.7069]
[1727433098962,3.1859,156.9,156.87,1.3757]
[1727433099168,16.82,156.93,156.87,1.3757]
[1727433099873,16.82,156.93,156.88,3.1862]
[1727433099874,3.1858,156.91,156.88,3.1862]
[1727433100372,16.82,156.93,156.87,1.3757]
[1727433101072,3.1857,156.91,156.89,3.1861]
[1727433101263,16.82,156.93,156.89,3.1861]
[1727433101465,3.1856,156.92,156.89,3.1861]
[1727433104171,16.82,156.95,156.87,18.1957]
[1727433104875,16.82,156.97,156.89,16.82]
[1727433105076,18.1369,156.99,156.89,16.82]
[1727433105477,3.1847,156.96,156.89,16.82]
[1727433106274,19.14,157.06,156.91,16.82]
[1727433106275,16.82,157.01,156.91,16.82]
[1727433106874,3.1843,156.98,156.94,3.1849]
[1727433110181,1.3117,157.05,156.95,16.82]
[1727433110379,18.1317,157.05,156.95,16.82]
[1727433110679,18.1317,157.05,156.96,1.3783]
[1727433111204,3.1834,157.03,156.99,3.1841]
[1727433112182,3.1835,157.02,156.99,3.1841]
[1727433114682,16.82,157.05,156.99,3.1841]
[1727433115401,3.1833,157.03,156.99,3.1841]
[1727433116186,3.1833,157.03,157.0,3.1838]
[1727433116587,3.1831,157.04,157.0,3.1838]
[1727433117991,3.1831,157.04,157.01,3.1836]
[1727433118516,20.0029,157.05,157.01,3.1836]
[1727433119590,3.1829,157.05,157.01,3.1836]
[1727433119991,16.82,157.05,156.96,4.0432]
[1727433120493,3.1835,157.02,156.96,4.0432]
[1727433120695,3.1835,157.02,156.98,3.1841]
[1727433120992,3.1835,157.02,156.96,4.0432]
[1727433121784,16.82,157.03,156.96,4.0432]
[1727433122393,16.82,157.03,156.98,3.1841]
[1727433122394,3.1837,157.01,156.98,3.1841]
[1727433122794,16.82,157.03,156.96,4.0432]
[1727433123489,3.1835,157.02,156.99,3.1839]
[1727433125295,16.82,157.03,156.97,3.1844]
[1727433126094,16.82,157.01,156.91,71.03613267]
[1727433126336,93.69915291,157.07,156.91,71.03613267]
[1727433126337,16.82,156.97,156.91,54.21613267]
[1727433126490,16.82,156.99,156.91,54.21613267]
[1727433126692,3.1844,156.98,156.94,3.185]
[1727433127495,16.82,156.99,156.91,55.47653267]
[1727433127897,16.82,156.99,156.93,3.1851]
[1727433128198,3.1848,156.96,156.91,1.2604]
[1727433128401,16.82,156.95,156.91,1.2604]
[1727433129094,3.1852,156.94,156.91,1.2604]
[1727433130197,3.1852,156.94,156.9,3.1857]
[1727433131094,3.1852,156.94,156.89,2.6855]
[1727433131095,3.1855,156.92,156.87,1.2833]
[1727433132204,16.82,156.95,156.87,1.2833]
[1727433132798,3.1856,156.92,156.88,3.1861]
[1727433133209,3.1856,156.92,156.87,1.2833]
[1727433133397,16.82,156.93,156.87,1.2833]
[1727433134295,16.82,156.93,156.87,4.4697]
[1727433134296,3.1858,156.91,156.87,4.4697]
[1727433134701,16.82,156.93,156.87,4.4697]
[1727433135299,16.82,156.93,156.85,1.3545]
[1727433135499,3.2064466,156.94,156.84,1.2888]
[1727433135500,16.82,156.9,156.84,1.2888]
[1727433135728,16.82,156.9,156.81,1.3437]
[1727433135914,20.0059,156.9,156.81,2.6405]
[1727433136517,20.0059,156.9,156.86,3.1866]
[1727433137516,16.82,156.9,156.81,2.6405]
[1727433138115,3.1864,156.88,156.84,3.187]
[1727433138423,16.82,156.9,156.81,2.6405]
[1727433138624,3.1862,156.89,156.85,3.1867]
[1727433139517,16.82,156.9,156.79,1.2719]
[1727433139821,16.82,156.9,156.79,18.0919]
[1727433140218,3.1867,156.87,156.79,18.0919]
[1727433141322,3.1867,156.87,156.83,3.1872]
[1727433141512,3.1867,156.87,156.79,18.0919]
[1727433142718,3.1867,156.87,156.83,3.1872]
[1727433143419,3.1867,156.87,156.79,18.0919]
[1727433143622,3.1867,156.87,156.84,3.1871]
[1727433144922,16.82,156.86,156.79,1.2719]
[1727433145127,16.82,156.84,156.79,1.2719]
[1727433145330,20.0072,156.84,156.79,1.2719]
[1727433146026,20.0072,156.84,156.81,3.1877]
[1727433146325,20.0072,156.84,156.77,2.6999]
[1727433147027,20.0072,156.84,156.8,3.1879]
[1727433147931,3.1873,156.83,156.8,3.1879]
[1727433149127,16.82,156.86,156.77,2.6999]
[1727433149427,16.82,156.88,156.79,16.82]
[1727433149624,16.82,156.88,156.86,3.1866]
[1727433149825,16.82,156.9,156.81,16.82]
[1727433150424,16.82,156.9,156.83,3.1873]
[1727433150735,16.82,156.9,156.81,16.82]
[1727433151030,3.1864,156.88,156.84,3.187]
[1727433151230,16.82,156.88,156.79,16.82]
[1727433151426,3.1867,156.86,156.83,3.1873]
[1727433151625,3.1867,156.86,156.79,16.82]
[1727433152027,3.1867,156.86,156.82,3.1874]
[1727433152231,3.1867,156.86,156.79,16.82]
[1727433152632,16.82,156.88,156.82,3.1874]
[1727433153131,3.1868,156.86,156.82,3.1874]
[1727433154027,16.82,156.86,156.77,19.5199]
[1727433154330,96.92290107,156.92,156.77,2.6999]
[1727433154331,16.82,156.84,156.77,2.6999]
[1727433155230,3.1874,156.83,156.79,3.188]
[1727433155725,3.1874,156.83,156.77,2.6999]
[1727433156840,3.1874,156.83,156.8,3.1878]
[1727433157631,20.0072,156.84,156.77,2.6999]
[1727433157831,16.82,156.84,156.77,2.6999]
[1727433158327,3.1873,156.83,156.8,3.1877]
[1727433158635,16.82,156.84,156.77,2.6999]
[1727433160037,3.1876,156.82,156.79,3.188]
[1727433161234,16.82,156.82,156.76,1.3246]
[1727433161438,16.82,156.8,156.76,1.3246]
[1727433161776,16.82,156.8,156.72,3.16874606]
[1727433161940,20.008,156.8,156.77,3.1884]
[1727433162239,20.008,156.8,156.72,4.53014606]
[1727433163941,20.008,156.8,156.77,3.1884]
[1727433166343,10.78,156.79,156.77,3.1884]
[1727433168746,10.78,156.79,156.78,3.1883]
[1727433171845,10.78,156.8,156.78,3.1883]
[1727433179951,10.78,156.79,156.77,3.1885]
[1727433180545,1.3585,156.87,156.74,10.78]
[1727433180745,10.78,156.81,156.77,10.78]
[1727433181145,10.78,156.81,156.8,3.1878]
[1727433181442,10.78,156.83,156.78,10.78]
[1727433181952,10.78,156.83,156.81,3.1875]
[1727433182153,3.1872,156.84,156.75,1.2624]
[1727433182154,75.76,156.91,156.8,10.78]
[1727433182349,10.78,156.86,156.81,10.78]
[1727433182945,10.78,156.86,156.85,3.1869]
[1727433183551,10.78,156.86,156.81,10.78]
[1727433183750,10.78,156.85,156.8,12.153]
[1727433184251,10.78,156.82,156.79,1.3438]
[1727433184453,10.78,156.81,156.79,1.3438]
[1727433184677,10.78,156.81,156.76,65.04888383]
[1727433184845,10.78,156.81,156.8,3.1879]
[1727433185256,10.78,156.81,156.79,3.1881]
[1727433185556,10.78,156.81,156.76,65.04888383]
[1727433185758,10.78,156.82,156.8,3.1878]
[1727433185947,10.78,156.82,156.78,10.78]
[1727433186764,10.78,156.82,156.81,3.1877]
[1727433188248,10.78,156.82,156.8,3.1879]
[1727433193263,13.9674,156.83,156.8,3.1879]
[1727433193467,93.79166781,156.92,156.8,10.78]
[1727433193767,10.78,156.85,156.8,10.78]
[1727433193961,13.967,156.85,156.82,3.1874]
[1727433196562,3.1871,156.84,156.82,3.1874]
[1727433198071,13.9671,156.84,156.82,3.1874]
[1727433200976,13.9671,156.84,156.76,54.26888383]
[1727433200977,3.1874,156.83,156.76,54.26888383]
[1727433201277,10.78,156.83,156.77,10.78]
[1727433201672,3.1875,156.82,156.8,3.1879]
[1727433201980,10.78,156.83,156.8,3.1879]
[1727433202776,13.9674,156.83,156.8,3.1879]
[1727433203274,13.9673,156.84,156.8,10.78]
[1727433204177,13.9673,156.84,156.81,3.1876]
[1727433204378,3.1874,156.83,156.81,3.1876]
[1727433205077,13.9672,156.84,156.81,3.1876]
[1727433205474,10.78,156.82,156.76,54.26888383]
[1727433205674,10.78,156.8,156.76,54.26888383]
[1727433206581,10.78,156.78,156.74,1.2968]
[1727433206872,1.2784,156.87,156.74,1.2968]
[1727433206873,10.78,156.77,156.74,1.2968]
[1727433207178,10.78,156.77,156.74,4.4858]
[1727433207774,10.78,156.77,156.72,3.1894]
[1727433208078,10.78,156.75,156.71,1.3905]
[1727433208478,10.78,156.75,156.72,3.1894]
[1727433209471,10.78,156.75,156.73,3.1893]
[1727433210879,10.78,156.74,156.68,10.78]
[1727433211175,10.78,156.73,156.68,10.78]
[1727433211983,3.1894,156.73,156.7,3.1898]
[1727433213685,13.9692,156.74,156.7,3.1898]
[1727433215375,13.9692,156.74,156.71,3.1897]
[1727433216482,1.2948,156.78,156.69,10.78]
[1727433216483,10.78,156.72,156.69,3.19]
[1727433216790,10.78,156.73,156.68,10.78]
[1727433216985,10.78,156.73,156.69,10.78]
[1727433217184,10.78,156.73,156.7,3.1898]
[1727433217379,3.1893,156.74,156.69,10.78]
[1727433217583,10.78,156.74,156.69,10.78]
[1727433217786,13.9692,156.74,156.71,3.1896]
[1727433217986,10.78,156.74,156.71,3.1896]
[1727433219198,10.78,156.74,156.72,3.1895]
[1727433219887,10.78,156.73,156.71,3.1897]
[1727433222187,13.9694,156.73,156.7,3.1899]
[1727433222582,10.78,156.73,156.71,3.1897]
[1727433223392,10.78,156.75,156.7,10.78]
[1727433223885,1.2948,156.78,156.71,10.78]
[1727433224090,10.78,156.77,156.72,10.78]
[1727433224491,3.1888,156.76,156.72,10.78]
[1727433224886,3.1888,156.76,156.73,3.1892]
[1727433226689,10.78,156.77,156.72,10.78]
[1727433227295,10.78,156.77,156.75,3.1889]
[1727433228189,10.78,156.78,156.76,3.1887]
[1727433228493,1.3085,156.83,156.75,10.78]
[1727433228494,10.78,156.8,156.75,10.78]
[1727433228890,13.968,156.8,156.77,3.1884]
[1727433230288,13.968,156.8,156.75,10.78]
[1727433230886,10.78,156.81,156.75,10.78]
[1727433231097,10.78,156.81,156.76,10.78]
[1727433231389,13.9676,156.82,156.79,3.1881]
[1727433232731,10.78,156.81,156.79,3.1881]
[1727433232993,10.78,156.8,156.7,4.0612]
[1727433233191,10.78,156.8,156.74,10.78]
[1727433234393,13.9681,156.8,156.74,10.78]
[1727433235295,13.9681,156.8,156.77,3.1884]
[1727433237689,3.1881,156.8,156.77,3.1884]
[1727433241907,3.1881,156.8,156.78,3.1883]
[1727433242305,3.1881,156.79,156.76,3.1886]
[1727433242503,3.1881,156.79,156.76,10.78]
[1727433242705,10.78,156.82,156.76,10.78]
[1727433242904,3.1881,156.8,156.77,3.1885]
[1727433243302,13.9681,156.8,156.77,3.1885]
[1727433243706,10.78,156.79,156.7,4.0612]
[1727433243906,10.78,156.79,156.73,10.78]
[1727433244807,3.1885,156.78,156.75,3.1888]
[1727433245214,10.78,156.79,156.7,4.0612]
[1727433245397,3.1887,156.76,156.7,4.0612]
[1727433245607,3.1887,156.76,156.72,10.78]
[1727433246252,3.1887,156.76,156.73,3.1892]
[1727433246404,13.9686,156.77,156.72,10.78]
[1727433246604,13.9686,156.77,156.74,3.189]
[1727433247108,10.78,156.75,156.58,6.3847]
[1727433247304,10.78,156.71,156.66,10.78]
[1727433247910,13.9699,156.71,156.67,3.1905]
[1727433248517,13.97,156.7,156.67,3.1905]
[1727433249809,10.78,156.7,156.65,1.281]
[1727433250012,10.78,156.68,156.63,10.78]
[1727433250604,10.78,156.68,156.64,10.78]
[1727433250805,13.9705,156.68,156.64,13.9711]
[1727433252721,13.9705,156.68,156.65,3.1909]
[1727433253015,13.9705,156.68,156.64,10.78]
[1727433253016,3.1902,156.69,156.64,10.78]
[1727433253314,3.1902,156.69,156.66,13.9706]
[1727433254011,3.1902,156.69,156.65,3.1909]
[1727433254214,3.1902,156.69,156.65,13.9709]
[1727433255210,3.1904,156.68,156.65,3.1909]
[1727433255413,3.1904,156.68,156.65,13.9709]
[1727433255814,3.19,156.7,156.65,10.78]
[1727433256016,10.78,156.7,156.66,10.78]
[1727433256913,13.9701,156.7,156.66,13.9706]
[1727433257412,10.78,156.7,156.66,3.1906]
[1727433257619,3.1902,156.69,156.66,3.1906]
[1727433257918,10.78,156.7,156.67,3.1905]
[1727433258112,93.89348181,156.74,156.67,10.78]
[1727433258314,10.78,156.72,156.67,10.78]
[1727433258615,13.9699,156.71,156.68,3.1903]
[1727433263922,3.1899,156.71,156.68,3.1903]
[1727433264123,13.97,156.7,156.67,3.1904]
[1727433264819,10.78,156.68,156.65,3.1908]
[1727433265226,13.9705,156.68,156.65,3.1908]
[1727433265418,10.78,156.68,156.64,3.1911]
[1727433265815,3.1908,156.67,156.64,3.1911]
[1727433266626,13.9708,156.67,156.64,3.1911]
[1727433267029,10.78,156.67,156.62,1.3402]
[1727433267526,3.1912,156.64,156.61,3.1917]
[1727433267821,10.78,156.65,156.61,3.1917]
[1727433268213,13.971,156.65,156.62,3.1915]
[1727433269121,10.78,156.65,156.5,6.3878]
[1727433269324,3.26221624,156.66,156.59,10.78]
[1727433269518,1.3153,156.67,156.6,10.78]
[1727433269519,10.78,156.65,156.6,10.78]
[1727433270317,13.9711,156.65,156.61,3.1916]
[1727433270523,3.1911,156.65,156.61,3.1916]
[1727433271222,13.93622135,156.66,156.52,54.35119781]
[1727433271422,10.78,156.64,156.59,10.78]
[1727433272218,13.9713,156.64,156.6,3.1918]
[1727433273124,3.1915,156.63,156.6,3.1918]
[1727433273324,10.78,156.64,156.6,3.1918]
[1727433273529,10.78,156.64,156.61,3.1918]
[1727433273927,10.78,156.66,156.61,10.78]
[1727433274128,10.78,156.64,156.52,54.35119781]
[1727433274329,10.78,156.64,156.59,10.78]
[1727433274832,3.1914,156.63,156.59,10.78]
[1727433275033,10.78,156.64,156.59,10.78]
[1727433275233,13.9712,156.64,156.6,3.1918]
[1727433276131,10.78,156.64,156.61,3.1918]
[1727433276337,10.78,156.66,156.52,54.35119781]
[1727433276529,10.78,156.66,156.6,10.78]
[1727433276837,3.1912,156.65,156.61,3.1918]
[1727433277233,10.78,156.66,156.52,54.35119781]
[1727433277531,3.1913,156.64,156.6,3.1919]
[1727433277735,3.1913,156.64,156.59,10.78]
[1727433277923,13.9713,156.64,156.59,10.78]
[1727433278122,10.78,156.64,156.62,3.1915]
[1727433278572,3.1911,156.65,156.62,3.1915]
[1727433278833,13.9708,156.66,156.62,3.1915]
[1727433279032,13.9708,156.66,156.63,3.1914]
[1727433279939,10.78,156.65,156.6,1.3852]
[1727433281830,13.971,156.65,156.62,3.1914]
[1727433282032,10.78,156.65,156.6,1.3852]
[1727433282838,13.9712,156.65,156.62,3.1914]
[1727433283132,10.78,156.64,156.6,1.3852]
[1727433283328,13.9712,156.64,156.61,3.1917]
[1727433283527,10.78,156.62,156.6,1.3852]
[1727433284932,10.78,156.62,156.56,10.78]
[1727433285738,10.78,156.61,156.59,3.1922]
[1727433287636,10.78,156.6,156.58,3.1923]
[1727433287834,10.78,156.6,156.55,13.9878019]
[1727433288338,10.78,156.6,156.59,3.1922]
[1727433289636,10.78,156.62,156.6,3.192]
[1727433292336,13.9716,156.62,156.6,3.192]
[1727433292545,3.21439347,156.65,156.6,3.192]
[1727433292737,10.78,156.62,156.6,3.192]
[1727433293142,10.78,156.62,156.61,3.1918]
[1727433293447,10.78,156.62,156.57,10.78]
[1727433294039,10.78,156.62,156.6,3.1919]
[1727433294946,3.1918,156.61,156.55,3.2207801]
[1727433295145,10.78,156.58,156.53,1.3464]
[1727433295443,10.78,156.58,156.53,15.34526411]
[1727433295750,1.3931,156.67,156.55,10.78]
[1727433296046,10.78,156.6,156.55,10.78]
[1727433296246,10.78,156.58,156.54,10.78]
[1727433296647,10.78,156.58,156.57,3.1926]
[1727433297142,10.78,156.6,156.59,3.1922]
[1727433297448,10.78,156.6,156.55,10.78]
[1727433297647,10.78,156.59,156.54,10.78]
[1727433298045,10.78,156.6,156.59,3.192]
[1727433298845,1.3931,156.67,156.59,3.192]
[1727433299050,10.78,156.6,156.59,3.192]
[1727433299737,10.78,156.61,156.59,3.192]
[1727433300149,3.1914,156.63,156.59,3.192]
[1727433300352,3.1912,156.64,156.57,10.78]
[1727433300543,10.78,156.63,156.57,10.78]
[1727433301455,10.78,156.63,156.61,3.1917]
[1727433302653,1.3931,156.67,156.58,10.78]
[1727433302846,1.3931,156.67,156.53,4.56526411]
[1727433302847,10.78,156.65,156.63,3.1914]
[1727433303047,10.78,156.65,156.6,1.2747]
[1727433303253,10.78,156.65,156.62,3.1914]
[1727433304251,3.1909,156.66,156.63,3.1913]
[1727433304449,10.78,156.65,156.63,3.1913]
[1727433305955,10.78,156.65,156.64,3.1912]
[1727433306156,10.78,156.65,156.61,10.78]
[1727433306554,10.78,156.65,156.62,3.1914]
[1727433307157,10.78,156.65,156.63,3.1913]
[1727433308959,10.78,156.65,156.64,3.1912]
[1727433309563,3.19,156.7,156.67,3.1904]
[1727433309762,3.19,156.7,156.63,10.78]
[1727433309763,10.78,156.68,156.63,10.78]
[1727433310068,10.78,156.68,156.64,10.78]
[1727433310466,10.78,156.7,156.65,10.78]
[1727433310970,10.78,156.68,156.62,3.24198553]
[1727433311161,169.75348181,156.74,156.63,10.78]
[1727433311467,10.78,156.68,156.66,3.1907]
[1727433311668,10.78,156.67,156.61,2.7098]
[1727433311865,10.78,156.64,156.61,2.7098]
[1727433312066,10.78,156.64,156.62,3.1915]
[1727433312965,10.78,156.63,156.54,1.2546]
[1727433313268,10.78,156.63,156.58,10.78]
[1727433313470,10.78,156.63,156.6,3.1919]
[1727433313673,10.78,156.63,156.57,10.78]
[1727433313865,13.9714,156.63,156.57,10.78]
[1727433314172,13.9714,156.63,156.6,3.192]
[1727433314366,10.78,156.63,156.6,3.192]
[1727433315868,116.24782034,156.74,156.6,10.78]
[1727433316172,10.78,156.65,156.6,10.78]
[1727433316376,10.78,156.64,156.61,3.1917]
[1727433316874,10.78,156.64,156.62,3.1916]
[1727433317665,10.78,156.64,156.58,10.78]
[1727433318274,10.78,156.64,156.59,10.78]
[1727433320473,10.78,156.64,156.61,3.1916]
[1727433321986,10.78,156.62,156.6,3.1919]
[1727433322275,10.78,156.62,156.56,10.78]
[1727433322475,13.9717,156.62,156.58,3.1923]
[1727433322665,10.78,156.61,156.56,10.78]
[1727433323171,10.78,156.61,156.59,3.1921]
[1727433323570,10.78,156.61,156.55,13.3476]
[1727433323571,13.9718,156.61,156.55,13.3476]
[1727433323778,13.9718,156.61,156.58,3.1924]
[1727433324076,13.9718,156.61,156.55,13.3476]
[1727433324374,3.1916,156.62,156.55,13.3476]
[1727433324677,10.78,156.61,156.56,10.78]
[1727433325477,13.9718,156.61,156.58,3.1923]
[1727433326478,10.78,156.61,156.59,3.1922]
[1727433326979,10.78,156.61,156.56,10.78]
[1727433327176,10.78,156.61,156.59,3.192]
[1727433328482,13.9718,156.61,156.58,3.1923]
[1727433329184,13.972,156.6,156.57,3.1925]
[1727433329382,10.78,156.59,156.51,54.35718095]
[1727433329590,13.9724,156.59,156.55,3.1929]
[1727433329784,13.9724,156.59,156.53,10.78]
[1727433329986,3.19119771,156.63,156.54,10.78]
[1727433330182,3.1919,156.61,156.57,3.1925]
[1727433330383,10.78,156.6,156.57,3.1925]
[1727433331085,3.1919,156.61,156.56,10.78]
[1727433331086,10.78,156.61,156.56,10.78]
[1727433331387,10.78,156.63,156.59,10.78]
[1727433331584,75.86,156.7,156.59,10.78]
[1727433331585,10.78,156.64,156.59,10.78]
[1727433332790,13.9713,156.64,156.61,3.1918]
[1727433335491,10.78,156.64,156.59,10.78]
[1727433335693,3.1914,156.63,156.6,3.1919]
[1727433335987,10.78,156.64,156.59,10.78]